bitfinex/quotes_BTCUSD_20251010
["timestamp","ask_amount","ask_price","bid_price","bid_amount"]
[1760082432379,5.78956594,121220.0,121210.0,0.01450117]
[1760082433674,5.78956594,121220.0,121210.0,8.329e-05]
[1760082433882,7.94611039,121220.0,121210.0,8.329e-05]
[1760082434091,7.94611039,121220.0,121210.0,0.01450117]
[1760082434514,7.95818072,121220.0,121210.0,0.01450117]
[1760082435005,8.04130278,121220.0,121210.0,8.329e-05]
[1760082435416,3.75718578,121220.0,121210.0,8.329e-05]
[1760082435666,3.06640933,121220.0,121210.0,8.329e-05]
[1760082435868,8.12352633,121220.0,121210.0,8.329e-05]
[1760082436124,8.35648633,121220.0,121210.0,8.329e-05]
[1760082436512,6.99695596,121220.0,121210.0,8.329e-05]
[1760082436759,2.28339896,121220.0,121210.0,0.00111477]
[1760082436977,6.99695596,121220.0,121210.0,0.00111477]
[1760082437582,6.84684591,121220.0,121210.0,0.00111477]
[1760082437830,6.18444591,121220.0,121210.0,0.00111477]
[1760082438046,3.06015469,121220.0,121210.0,0.06680265]
[1760082438295,0.69366653,121220.0,121210.0,0.06680265]
[1760082438507,1.13338742,121220.0,121210.0,0.23180553]
[1760082438717,1.36634742,121220.0,121210.0,0.23180553]
[1760082438923,1.30397784,121220.0,121210.0,0.23180553]
[1760082439129,1.27918049,121220.0,121210.0,0.23180553]
[1760082439322,1.44416976,121220.0,121210.0,0.23180553]
[1760082439519,0.78176976,121220.0,121210.0,0.23180553]
[1760082439777,0.53333075,121230.0,121220.0,0.17940715]
[1760082439985,0.16497582,121230.0,121220.0,0.23067715]
[1760082440199,1.16737582,121230.0,121220.0,0.23067715]
[1760082440417,0.16497582,121230.0,121220.0,0.23067715]
[1760082440652,1.16737582,121230.0,121220.0,0.23067715]
[1760082441087,1.77208598,121230.0,121220.0,0.23067715]
[1760082441502,1.68620598,121230.0,121220.0,0.23067715]
[1760082441709,1.10968598,121230.0,121220.0,0.06568788]
[1760082441949,1.77208598,121230.0,121220.0,0.0821868]
[1760082442192,1.78442527,121230.0,121220.0,0.0821868]
[1760082442579,1.60578712,121230.0,121220.0,0.0821868]
[1760082442792,0.50365262,121230.0,121220.0,0.27307937]
[1760082443000,1.02926712,121230.0,121220.0,0.25658045]
[1760082443246,1.19424278,121230.0,121220.0,0.23067715]
[1760082443459,1.42720278,121230.0,121220.0,0.23067715]
[1760082444511,0.82249262,121230.0,121220.0,0.23067715]
[1760082444950,1.42720278,121230.0,121220.0,0.23067715]
[1760082445373,1.42720278,121230.0,121220.0,0.06620358]
[1760082450716,0.42455696,121230.0,121220.0,0.23119285]
[1760082450976,1.19424278,121230.0,121220.0,0.23119285]
[1760082451195,1.42720278,121230.0,121220.0,0.23119285]
[1760082452923,1.67374009,121250.0,121240.0,0.01441788]
[1760082453132,2.33258009,121250.0,121240.0,0.01441788]
[1760082453344,2.30778942,121250.0,121240.0,0.03004788]
[1760082453598,2.30778942,121250.0,121240.0,0.04218788]
[1760082454252,2.91349958,121250.0,121240.0,0.04218788]
[1760082454882,1.77543658,121250.0,121240.0,0.04218788]
[1760082455095,4.48330058,121250.0,121240.0,0.04218788]
[1760082455307,6.0989017,121250.0,121240.0,0.04218788]
[1760082455517,5.8842807,121250.0,121240.0,0.04218788]
[1760082455721,1.8002267,121250.0,121240.0,0.04218788]
[1760082455900,6.0507457,121250.0,121240.0,0.04218788]
[1760082456144,4.96565254,121250.0,121240.0,0.04218788]
[1760082456375,1.8002267,121250.0,121240.0,0.04218788]
[1760082456792,5.38211514,121250.0,121240.0,0.04218788]
[1760082457002,5.84821214,121250.0,121240.0,0.04218788]
[1760082457212,5.83173614,121250.0,121240.0,0.04218788]
[1760082457483,5.85339014,121250.0,121240.0,0.04218788]
[1760082457692,6.9990263,121250.0,121240.0,0.04218788]
[1760082457903,5.70516414,121250.0,121240.0,0.04218788]
[1760082458087,7.0105763,121250.0,121240.0,0.02777]
[1760082458325,7.0451533,121250.0,121240.0,0.01441788]
[1760082458530,6.5698433,121250.0,121240.0,0.01441788]
[1760082458751,2.4174763,121250.0,121240.0,0.03004788]
[1760082459147,5.78402414,121250.0,121240.0,0.04218788]
[1760082459378,5.15456814,121250.0,121240.0,0.04218788]
[1760082459584,1.28925198,121250.0,121240.0,0.06636788]
[1760082459719,2.14961714,121250.0,121240.0,0.06636788]
[1760082460154,2.10784614,121250.0,121240.0,0.06636788]
[1760082461026,1.44552614,121250.0,121240.0,0.06636788]
[1760082461247,2.10784614,121250.0,121240.0,0.06636788]
[1760082461447,1.67844614,121250.0,121240.0,0.06636788]
[1760082461661,2.10784614,121250.0,121240.0,0.06636788]
[1760082462101,1.15036614,121250.0,121240.0,0.25567828]
[1760082462301,1.78789602,121250.0,121240.0,0.06636788]
[1760082462537,1.78789602,121250.0,121240.0,0.08286408]
[1760082463139,1.12457602,121250.0,121240.0,0.08286408]
[1760082463376,1.55397602,121250.0,121240.0,0.08286408]
[1760082463512,1.78689602,121250.0,121240.0,0.08286408]
[1760082463709,1.78589602,121250.0,121240.0,0.08286408]
[1760082464135,1.55297602,121250.0,121240.0,0.08286408]
[1760082464321,1.18118586,121250.0,121240.0,0.08286408]
[1760082464526,1.78589602,121250.0,121240.0,0.08286408]
[1760082465361,1.55297602,121250.0,121240.0,0.08286408]
[1760082465563,1.78589602,121250.0,121240.0,0.08286408]
[1760082467303,0.35391741,121250.0,121240.0,0.2738241]
[1760082467530,0.42725797,121250.0,121240.0,0.23132993]
[1760082467772,0.00137797,121250.0,121240.0,0.31445199]
[1760082467975,0.32017797,121250.0,121240.0,0.31445199]
[1760082468392,0.08725797,121250.0,121240.0,0.31445199]
[1760082468599,0.32017797,121250.0,121240.0,0.31445199]
[1760082468823,0.92488813,121250.0,121240.0,0.36360875]
[1760082469234,0.00137797,121250.0,121240.0,0.31445199]
[1760082469440,0.92488813,121250.0,121240.0,0.31445199]
[1760082472346,0.69196813,121250.0,121240.0,0.31445199]
[1760082472557,0.32017797,121250.0,121240.0,0.31445199]
[1760082474474,0.08725797,121250.0,121240.0,0.31445199]
[1760082474678,0.32017797,121250.0,121240.0,0.31445199]
[1760082475292,0.08725797,121250.0,121240.0,0.31445199]
[1760082475499,0.32017797,121250.0,121240.0,0.31445199]
[1760082476141,0.32013797,121250.0,121240.0,0.31445199]
[1760082476604,0.08725797,121250.0,121240.0,0.31445199]
[1760082476822,0.32013797,121250.0,121240.0,0.31445199]
[1760082477951,0.69055016,121250.0,121240.0,0.31445199]
[1760082478181,0.92343016,121250.0,121240.0,0.31445199]
[1760082478612,1.08837861,121250.0,121240.0,0.31445199]
[1760082478848,0.85549861,121250.0,121240.0,0.14948994]
[1760082479054,1.08837861,121250.0,121240.0,0.14948994]
[1760082480310,1.08837861,121250.0,121240.0,0.31445199]
[1760082480593,1.08837861,121250.0,121240.0,0.06636788]
[1760082480792,3.16245377,121250.0,121240.0,0.04218788]
[1760082480996,3.41911659,121250.0,121240.0,0.04218788]
[1760082481205,2.81440643,121250.0,121240.0,0.04218788]
[1760082482775,6.68454859,121250.0,121240.0,0.02655788]
[1760082483492,2.05687159,121250.0,121240.0,0.02655788]
[1760082483697,6.68454859,121250.0,121240.0,0.02655788]
[1760082483913,6.68454859,121250.0,121230.0,0.03527]
[1760082483914,2.47909105,121240.0,121230.0,0.01214]
[1760082484084,3.68851137,121240.0,121230.0,0.01441788]
[1760082485079,6.16396921,121240.0,121230.0,0.01441788]
[1760082485333,6.61784721,121240.0,121230.0,0.01441788]
[1760082485508,2.00131721,121240.0,121230.0,0.01441788]
[1760082485714,6.62899421,121240.0,121230.0,0.01441788]
[1760082485933,2.00131721,121240.0,121230.0,0.01441788]
[1760082486164,6.62899421,121240.0,121230.0,0.01441788]
[1760082487105,6.64438913,121240.0,121230.0,0.01441788]
[1760082487317,6.62899421,121240.0,121230.0,0.01441788]
[1760082487524,2.00131721,121240.0,121230.0,0.01441788]
[1760082487812,6.62899421,121240.0,121230.0,0.01441788]
[1760082488017,6.6443865,121240.0,121230.0,0.01441788]
[1760082488237,2.00131721,121240.0,121230.0,0.01441788]
[1760082488465,6.62899421,121240.0,121230.0,0.01441788]
[1760082488695,2.00131721,121240.0,121230.0,0.01441788]
[1760082488938,6.62899421,121240.0,121230.0,0.01441788]
[1760082489167,2.00131721,121240.0,121230.0,0.01441788]
[1760082489850,2.04149689,121240.0,121230.0,0.01441788]
[1760082490071,0.16497566,121230.0,121220.0,0.0005157]
[1760082490279,1.08572788,121230.0,121220.0,0.0005157]
[1760082490491,1.51512788,121230.0,121220.0,0.0005157]
[1760082490691,0.85280788,121230.0,121220.0,0.0005157]
[1760082490893,1.51520788,121230.0,121220.0,0.0005157]
[1760082491586,0.85280788,121230.0,121220.0,0.0005157]
[1760082491820,1.51520788,121230.0,121220.0,0.0283057]
[1760082492238,1.28220788,121230.0,121220.0,0.0283057]
[1760082492431,1.51524788,121230.0,121220.0,0.0283057]
[1760082493289,0.76968582,121230.0,121220.0,0.0510157]
[1760082493534,1.19908582,121230.0,121220.0,0.06543358]
[1760082493873,1.49495418,121230.0,121220.0,0.04272358]
[1760082494334,1.26191418,121230.0,121220.0,0.04272358]
[1760082494516,0.22780402,121230.0,121220.0,0.04272358]
[1760082494691,0.89024402,121230.0,121220.0,0.04272358]
[1760082494899,1.49495418,121230.0,121220.0,0.04272358]
[1760082495140,0.83251418,121230.0,121220.0,0.04272358]
[1760082495331,1.49495418,121230.0,121220.0,0.06543358]
[1760082495526,1.49495418,121230.0,121220.0,0.04272358]
[1760082496509,1.49495418,121230.0,121220.0,0.06543358]
[1760082497188,0.65724402,121230.0,121220.0,0.07316127]
[1760082497390,1.49499418,121230.0,121220.0,0.06543358]
[1760082497518,1.11049667,121230.0,121220.0,0.06543358]
[1760082497719,1.79678932,121230.0,121220.0,0.06543358]
[1760082499687,0.89028402,121230.0,121220.0,0.06543358]
[1760082499917,1.79678932,121230.0,121220.0,0.06543358]
[1760082500672,0.89028402,121230.0,121220.0,0.06543358]
[1760082500879,1.79678932,121230.0,121220.0,0.06543358]
[1760082502406,2.25004197,121230.0,121220.0,0.06543358]
[1760082502798,2.25004197,121230.0,121220.0,0.04272358]
[1760082503877,2.25004197,121230.0,121220.0,0.01493358]
[1760082504080,2.25004197,121230.0,121220.0,0.0005157]
[1760082504300,2.55004197,121230.0,121220.0,0.01493358]
[1760082504910,2.89004197,121230.0,121220.0,0.01493358]
[1760082505102,2.91483756,121230.0,121220.0,0.01493358]
[1760082506607,2.91487756,121230.0,121220.0,0.01493358]
[1760082507215,2.82899756,121230.0,121220.0,0.01493358]
[1760082507421,2.68179756,121230.0,121220.0,0.03072358]
[1760082507625,2.91487756,121230.0,121220.0,0.03072358]
[1760082507827,2.91487756,121230.0,121220.0,0.01493358]
[1760082508039,2.91491756,121230.0,121220.0,0.01493358]
[1760082508515,2.68179756,121230.0,121220.0,0.01493358]
[1760082508700,2.61491756,121230.0,121220.0,0.01493358]
[1760082509353,2.6303176,121230.0,121220.0,0.01493358]
[1760082509554,2.3971976,121230.0,121220.0,0.04272358]
[1760082509830,2.6302776,121230.0,121220.0,0.04272358]
[1760082510239,2.3971976,121230.0,121220.0,0.01493358]
[1760082510447,2.6302776,121230.0,121220.0,0.01493358]
[1760082515223,2.3971976,121230.0,121220.0,0.01493358]
[1760082515637,2.6302776,121230.0,121220.0,0.01493358]
[1760082516816,2.6971976,121230.0,121220.0,0.01493358]
[1760082517001,2.9302776,121230.0,121220.0,0.01493358]
[1760082518464,2.6971976,121230.0,121220.0,0.01493358]
[1760082518823,2.9302376,121230.0,121220.0,0.01493358]
[1760082520816,2.5007976,121230.0,121220.0,0.01493358]
[1760082521023,2.9302776,121230.0,121220.0,0.01493358]
[1760082522825,2.6972376,121230.0,121220.0,0.01493358]
[1760082523031,2.9302776,121230.0,121220.0,0.01493358]
[1760082523654,2.93798477,121230.0,121220.0,0.01493358]
[1760082524507,2.93794477,121230.0,121220.0,0.01493358]
[1760082524732,2.70494477,121230.0,121220.0,0.01493358]
[1760082524940,2.9302376,121230.0,121220.0,0.01493358]
[1760082526368,2.9302376,121230.0,121220.0,0.04302358]
[1760082527208,2.9302376,121230.0,121220.0,0.02742358]
[1760082527415,2.9302376,121230.0,121220.0,0.01493358]
[1760082528199,2.2677576,121230.0,121220.0,0.01493358]
[1760082528352,2.9302376,121230.0,121220.0,0.01493358]
[1760082528968,2.9302376,121230.0,121220.0,0.06516358]
[1760082529371,2.6972376,121230.0,121220.0,0.04245358]
[1760082529571,2.9303176,121230.0,121220.0,0.04245358]
[1760082529889,2.9303176,121230.0,121220.0,0.02693358]
[1760082530088,2.93033574,121230.0,121220.0,0.01493358]
[1760082530294,2.69725574,121230.0,121220.0,0.01493358]
[1760082530494,2.93033574,121230.0,121220.0,0.01493358]
[1760082533953,2.93034231,121230.0,121220.0,0.01493358]
[1760082535854,2.69726231,121230.0,121220.0,0.01493358]
[1760082536177,2.93034231,121230.0,121220.0,0.01493358]
[1760082537646,2.69726231,121230.0,121220.0,0.01493358]
[1760082537862,2.93030231,121230.0,121220.0,0.01493358]
[1760082539499,2.91487756,121230.0,121220.0,0.01493358]
[1760082540130,2.9303022,121230.0,121220.0,0.01493358]
[1760082540272,2.91487756,121230.0,121220.0,0.01493358]
[1760082540477,2.91491756,121230.0,121220.0,0.01493358]
[1760082541017,2.68183756,121230.0,121220.0,0.01493358]
[1760082541242,2.91491756,121230.0,121220.0,0.01493358]
[1760082543271,4.28664768,121230.0,121220.0,0.01493358]
[1760082543504,3.54354882,121230.0,121220.0,0.01493358]
[1760082543745,4.20610882,121230.0,121220.0,0.01493358]
[1760082543958,4.19068456,121230.0,121220.0,0.01493358]
[1760082544109,4.19068456,121230.0,121220.0,0.0005157]
[1760082544110,4.27380662,121230.0,121220.0,0.0005157]
[1760082544321,5.99255348,121230.0,121220.0,0.0005157]
[1760082544781,6.01568897,121230.0,121220.0,0.0005157]
[1760082545020,5.98545695,121230.0,121220.0,0.0005157]
[1760082545985,5.78260897,121230.0,121220.0,0.0005157]
[1760082546366,5.98545695,121230.0,121220.0,0.0005157]
[1760082547214,5.75237695,121230.0,121220.0,0.0005157]
[1760082547693,5.37671495,121230.0,121220.0,0.0005157]
[1760082547926,3.776141,121230.0,121220.0,0.0005157]
[1760082548144,5.36897895,121230.0,121220.0,0.0005157]
[1760082550176,5.71257895,121230.0,121220.0,0.0005157]
[1760082551131,4.119741,121230.0,121220.0,0.0005157]
[1760082551350,5.71257895,121230.0,121220.0,0.0005157]
[1760082551555,5.72057895,121230.0,121220.0,0.0005157]
[1760082553759,7.75297295,121230.0,121220.0,0.0005157]
[1760082553987,7.56912895,121230.0,121220.0,0.0005157]
[1760082554212,7.54147895,121230.0,121220.0,0.0005157]
[1760082554418,8.30660095,121230.0,121220.0,0.0005157]
[1760082554626,8.31794795,121230.0,121220.0,0.0005157]
[1760082554834,9.59638995,121230.0,121220.0,0.0005157]
[1760082555042,9.60672395,121230.0,121220.0,0.0005157]
[1760082555275,9.33649495,121230.0,121220.0,0.0005157]
[1760082555485,9.53224695,121230.0,121220.0,0.0005157]
[1760082555696,9.57956495,121230.0,121220.0,0.0005157]
[1760082556111,9.59413695,121230.0,121220.0,0.0005157]
[1760082556312,8.83429095,121230.0,121220.0,0.0005157]
[1760082556525,5.06124995,121230.0,121220.0,0.0005157]
[1760082556736,8.79261095,121230.0,121220.0,0.0005157]
[1760082556952,8.69921495,121230.0,121220.0,0.0005157]
[1760082557162,5.06124995,121230.0,121220.0,0.0005157]
[1760082557360,8.76288195,121230.0,121220.0,0.0005157]
[1760082557569,8.49589995,121230.0,121220.0,0.0005157]
[1760082557775,8.16900495,121230.0,121220.0,0.0005157]
[1760082557975,8.24753895,121230.0,121220.0,0.0005157]
[1760082558176,8.26153395,121230.0,121220.0,0.0005157]
[1760082558381,8.09833895,121230.0,121220.0,0.0005157]
[1760082558581,8.09775495,121230.0,121220.0,0.0005157]
[1760082558784,7.82137095,121230.0,121220.0,0.0005157]
[1760082558986,5.05332995,121230.0,121220.0,0.0005157]
[1760082559234,7.79965495,121230.0,121220.0,0.0005157]
[1760082559437,7.89965495,121230.0,121220.0,0.0005157]
[1760082559639,3.54328183,121230.0,121220.0,0.0005157]
[1760082559886,6.16969683,121230.0,121220.0,0.0005157]
[1760082560014,6.18309083,121230.0,121220.0,0.0005157]
[1760082560230,3.54328183,121230.0,121220.0,0.0005157]
[1760082560426,6.16816183,121230.0,121220.0,0.0005157]
[1760082560636,6.18028583,121230.0,121220.0,0.0005157]
[1760082561033,6.62407583,121230.0,121220.0,0.0005157]
[1760082561195,6.33579483,121230.0,121220.0,0.0005157]
[1760082561401,6.32411783,121230.0,121220.0,0.0005157]
[1760082561614,6.32859283,121230.0,121220.0,0.0005157]
[1760082561777,6.29992083,121230.0,121220.0,0.0005157]
[1760082561973,6.14164483,121230.0,121220.0,0.0005157]
[1760082562174,6.15654483,121230.0,121220.0,0.0005157]
[1760082562379,5.93449683,121230.0,121220.0,0.0005157]
[1760082562782,5.83899983,121230.0,121220.0,0.0005157]
[1760082562979,5.82833683,121230.0,121220.0,0.0005157]
[1760082563199,5.83557483,121230.0,121220.0,0.0005157]
[1760082563431,3.55128183,121230.0,121220.0,0.0005157]
[1760082563629,5.96281683,121230.0,121220.0,0.0005157]
[1760082564237,3.55128183,121230.0,121220.0,0.0005157]
[1760082564443,5.90283483,121230.0,121220.0,0.0005157]
[1760082564606,5.9113628,121230.0,121220.0,0.0005157]
[1760082564801,5.8973518,121230.0,121220.0,0.0005157]
[1760082565010,3.5815668,121230.0,121220.0,0.0005157]
[1760082565219,4.0139858,121230.0,121220.0,0.0005157]
[1760082565435,3.9630888,121230.0,121220.0,0.0005157]
[1760082565701,4.1464448,121230.0,121220.0,0.0005157]
[1760082565907,4.5668328,121230.0,121220.0,0.0005157]
[1760082566061,4.7528638,121230.0,121220.0,0.0005157]
[1760082566257,4.8585598,121230.0,121220.0,0.0005157]
[1760082566455,4.8433308,121230.0,121220.0,0.0005157]
[1760082566664,4.7524558,121230.0,121220.0,0.0005157]
[1760082566911,4.7456118,121230.0,121220.0,0.0005157]
[1760082567063,4.6597848,121230.0,121220.0,0.0005157]
[1760082567308,4.6589798,121230.0,121220.0,0.0005157]
[1760082567485,4.7986328,121230.0,121220.0,0.0005157]
[1760082567659,4.8789978,121230.0,121220.0,0.0005157]
[1760082567865,4.8654308,121230.0,121220.0,0.0005157]
[1760082568087,5.0357588,121230.0,121220.0,0.0005157]
[1760082568286,5.2243968,121230.0,121220.0,0.0005157]
[1760082568489,5.2337848,121230.0,121220.0,0.0005157]
[1760082568701,4.95582791,121230.0,121220.0,0.0005157]
[1760082568943,4.98932091,121230.0,121220.0,0.0005157]
[1760082569150,3.51447591,121230.0,121220.0,0.0005157]
[1760082569274,5.27500391,121230.0,121220.0,0.0005157]
[1760082569479,5.27736791,121230.0,121220.0,0.0005157]
[1760082569681,3.03588013,121230.0,121220.0,0.0005157]
[1760082569902,4.28248891,121230.0,121220.0,0.0005157]
[1760082570096,4.43436391,121230.0,121220.0,0.0005157]
[1760082570490,4.76638391,121230.0,121220.0,0.0005157]
[1760082570719,5.08467191,121230.0,121220.0,0.0005157]
[1760082570917,5.57693291,121230.0,121220.0,0.0005157]
[1760082571072,5.30578491,121230.0,121220.0,0.0005157]
[1760082571307,6.07241182,121230.0,121220.0,0.0005157]
[1760082571508,5.87305382,121230.0,121220.0,0.0005157]
[1760082571712,5.85939782,121230.0,121220.0,0.0005157]
[1760082571890,3.57346482,121230.0,121220.0,0.0005157]
[1760082572080,5.87203282,121230.0,121220.0,0.0005157]
[1760082572282,2.96873093,121230.0,121220.0,0.0005157]
[1760082572752,5.25215593,121230.0,121220.0,0.0005157]
[1760082572902,5.32268793,121230.0,121220.0,0.0005157]
[1760082573105,2.96873093,121230.0,121220.0,0.0005157]
[1760082573310,3.58713193,121230.0,121220.0,0.0005157]
[1760082573516,3.64965687,121230.0,121220.0,0.0005157]
[1760082573723,3.49750287,121230.0,121220.0,0.0005157]
[1760082573924,3.70159887,121230.0,121220.0,0.0005157]
[1760082574126,3.64643887,121230.0,121220.0,0.0005157]
[1760082574326,4.05914593,121230.0,121220.0,0.0005157]
[1760082574539,2.97673093,121230.0,121220.0,0.0005157]
[1760082574883,4.61859693,121230.0,121220.0,0.0005157]
[1760082575087,4.71337377,121230.0,121220.0,0.0005157]
[1760082575295,4.81630977,121230.0,121220.0,0.0005157]
[1760082575505,5.10142977,121230.0,121220.0,0.0005157]
[1760082575709,5.08660102,121230.0,121220.0,0.0005157]
[1760082575932,5.156369,121230.0,121220.0,0.0005157]
[1760082576079,5.05636939,121230.0,121220.0,0.0005157]
[1760082576300,5.02921939,121230.0,121220.0,0.0005157]
[1760082576502,4.94075839,121230.0,121220.0,0.0005157]
[1760082576769,5.12075839,121230.0,121220.0,0.0005157]
[1760082576896,3.39142239,121230.0,121220.0,0.0005157]
[1760082577099,4.94075839,121230.0,121220.0,0.0005157]
[1760082577619,3.39142239,121230.0,121220.0,0.0005157]
[1760082577810,4.94075839,121230.0,121220.0,0.0005157]
[1760082578008,3.4198645,121230.0,121220.0,0.0005157]
[1760082578213,3.5953935,121230.0,121220.0,0.0005157]
[1760082579303,3.5873935,121230.0,121220.0,0.0005157]
[1760082582708,3.3543935,121230.0,121220.0,0.0005157]
[1760082582915,3.5873935,121230.0,121220.0,0.0005157]
[1760082583559,3.1578735,121230.0,121220.0,0.0005157]
[1760082583803,2.9094935,121230.0,121220.0,0.0005157]
[1760082584013,1.40782061,121230.0,121220.0,0.0005157]
[1760082584239,0.70526955,121230.0,121220.0,0.06736358]
[1760082584440,1.5198535,121230.0,121220.0,0.06736358]
[1760082584626,1.6268535,121230.0,121220.0,0.06736358]
[1760082584840,1.8598535,121230.0,121220.0,0.06736358]
[1760082585249,1.27733029,121230.0,121220.0,0.06736358]
[1760082585488,1.6268535,121230.0,121220.0,0.06736358]
[1760082585680,1.8598535,121230.0,121220.0,0.06736358]
[1760082586358,1.6268535,121230.0,121220.0,0.06736358]
[1760082586571,1.8598535,121230.0,121220.0,0.06736358]
[1760082586786,1.2224535,121230.0,121220.0,0.04280788]
[1760082587001,1.8849735,121230.0,121220.0,0.04280788]
[1760082587615,1.6519735,121230.0,121220.0,0.04280788]
[1760082587834,1.8849735,121230.0,121220.0,0.04280788]
[1760082588041,1.6519735,121230.0,121220.0,0.04280788]
[1760082588241,1.8849735,121230.0,121220.0,0.04280788]
[1760082589201,1.6519735,121230.0,121220.0,0.01441788]
[1760082589417,1.9092535,121230.0,121220.0,0.01441788]
[1760082593160,0.50498927,121220.0,121210.0,0.01450117]
[1760082593331,1.78224316,121220.0,121210.0,0.01450117]
[1760082593491,1.13602316,121220.0,121210.0,0.01450117]
[1760082593709,1.13602316,121220.0,121210.0,0.01639513]
[1760082593946,1.79850316,121220.0,121210.0,0.03166513]
[1760082594345,1.13602316,121220.0,121210.0,0.03166513]
[1760082594644,1.79850316,121220.0,121210.0,0.03166513]
[1760082594845,1.79850316,121220.0,121210.0,0.04378513]
[1760082595071,1.79850316,121220.0,121210.0,0.06683513]
[1760082595694,1.19376927,121220.0,121210.0,0.06683513]
[1760082595869,1.79850316,121220.0,121210.0,0.06683513]
[1760082596410,1.79850316,121220.0,121210.0,0.04378513]
[1760082597974,1.56550316,121220.0,121210.0,0.04378513]
[1760082598157,1.79850316,121220.0,121210.0,0.04378513]
[1760082599325,1.13602316,121220.0,121210.0,0.04378513]
[1760082599529,1.79850316,121220.0,121210.0,0.04378513]
[1760082599931,1.79850316,121220.0,121210.0,0.06683513]
[1760082600474,1.58978316,121220.0,121210.0,0.01639513]
[1760082600703,1.82278316,121220.0,121210.0,0.01639513]
[1760082601124,1.58978316,121220.0,121210.0,0.01639513]
[1760082601655,1.82278316,121220.0,121210.0,0.01639513]
[1760082602184,1.39330316,121220.0,121210.0,0.01639513]
[1760082602387,1.82278316,121220.0,121210.0,0.01639513]
[1760082602809,1.82278316,121220.0,121210.0,0.00197725]
[1760082603017,2.51063911,121220.0,121210.0,0.00197725]
[1760082603191,1.93070429,121220.0,121210.0,0.00197725]
[1760082603389,1.18510223,121220.0,121210.0,0.00197725]
[1760082603589,1.84762223,121220.0,121210.0,0.01639513]
[1760082604230,1.18510223,121220.0,121210.0,0.01639513]
[1760082604426,1.80704223,121220.0,121210.0,0.06746513]
[1760082604648,1.57400223,121220.0,121210.0,0.06746513]
[1760082604857,1.80704223,121220.0,121210.0,0.06746513]
[1760082605089,1.59053223,121220.0,121210.0,0.04458513]
[1760082605278,1.82353223,121220.0,121210.0,0.04458513]
[1760082605893,1.16105223,121220.0,121210.0,0.04458513]
[1760082606118,1.82353223,121220.0,121210.0,0.04458513]
[1760082606413,1.84684223,121220.0,121210.0,0.04458513]
[1760082607462,1.84684223,121220.0,121210.0,0.01639513]
[1760082608083,1.61384223,121220.0,121210.0,0.01639513]
[1760082608302,1.18436223,121220.0,121210.0,0.01639513]
[1760082608518,1.84684223,121220.0,121210.0,0.01639513]
[1760082608732,0.55631834,121220.0,121210.0,0.03283513]
[1760082609003,1.82353223,121220.0,121210.0,0.03283513]
[1760082609426,1.59053223,121220.0,121210.0,0.03283513]
[1760082609636,1.59053223,121220.0,121210.0,0.04458513]
[1760082609838,1.82353223,121220.0,121210.0,0.04458513]
[1760082610449,1.84684223,121220.0,121210.0,0.04458513]
[1760082610661,1.50684223,121220.0,121210.0,0.04458513]
[1760082610874,1.84684223,121220.0,121210.0,0.04458513]
[1760082611084,1.82353223,121220.0,121210.0,0.04458513]
[1760082611660,1.82353223,121220.0,121210.0,0.02814513]
[1760082611862,1.84684223,121220.0,121210.0,0.02814513]
[1760082612903,1.82353223,121220.0,121210.0,0.04458513]
[1760082615546,1.1987062,121220.0,121210.0,0.06746513]
[1760082616030,1.80344009,121220.0,121210.0,0.06746513]
[1760082616253,1.80344009,121220.0,121210.0,0.04458513]
[1760082617170,1.14096009,121220.0,121210.0,0.04458513]
[1760082617388,1.55391009,121220.0,121210.0,0.06746513]
[1760082617593,1.78691009,121220.0,121210.0,0.06746513]
[1760082620543,1.55391009,121220.0,121210.0,0.06746513]
[1760082620751,1.78695009,121220.0,121210.0,0.06746513]
[1760082621568,2.0890224,121220.0,121210.0,0.06746513]
[1760082622435,1.4265024,121220.0,121210.0,0.23246801]
[1760082622648,2.07427547,121220.0,121210.0,0.23246801]
[1760082622755,2.07431547,121220.0,121210.0,0.23246801]
[1760082622960,1.6762862,121220.0,121210.0,0.23246801]
[1760082623165,2.07435547,121220.0,121210.0,0.23246801]
[1760082623975,1.84127547,121220.0,121210.0,0.06746513]
[1760082624184,2.07435547,121220.0,121210.0,0.06746513]
[1760082625317,1.84127547,121220.0,121210.0,0.06746513]
[1760082625539,2.07431547,121220.0,121210.0,0.06746513]
[1760082628054,2.54424857,121220.0,121210.0,0.04458513]
[1760082628490,2.09084547,121220.0,121210.0,0.04458513]
[1760082629876,1.85780547,121220.0,121210.0,0.04458513]
[1760082630080,2.56759857,121220.0,121210.0,0.00197725]
[1760082630305,2.56759857,121220.0,121210.0,0.01639513]
[1760082630541,2.33451857,121220.0,121210.0,0.01639513]
[1760082630760,2.54428857,121220.0,121210.0,0.01639513]
[1760082631165,2.56759857,121220.0,121210.0,0.01639513]
[1760082632170,2.66759857,121220.0,121210.0,0.01639513]
[1760082633578,2.64432857,121220.0,121210.0,0.03266513]
[1760082634383,1.18170927,121220.0,121210.0,0.03266513]
[1760082634589,1.29238674,121220.0,121210.0,0.06929513]
[1760082634756,2.19919294,121220.0,121210.0,0.06929513]
[1760082635158,2.21432294,121220.0,121210.0,0.04476513]
[1760082635364,1.98120294,121220.0,121210.0,0.04476513]
[1760082635567,2.00426294,121220.0,121210.0,0.01639513]
[1760082635772,2.23738294,121220.0,121210.0,0.01639513]
[1760082635982,2.21432294,121220.0,121210.0,0.01639513]
[1760082636648,2.23738294,121220.0,121210.0,0.01639513]
[1760082638049,2.69074604,121220.0,121210.0,0.01639513]
[1760082638225,1.33053674,121220.0,121210.0,0.01639513]
[1760082638446,2.69074604,121220.0,121210.0,0.01639513]
[1760082643157,2.69074604,121220.0,121210.0,0.00197725]
[1760082643615,2.69074604,121220.0,121210.0,0.01639513]
[1760082644426,0.1650165,121200.0,121190.0,0.20996073]
[1760082644633,1.3049027,121200.0,121190.0,0.22628112]
[1760082645493,1.3049027,121200.0,121190.0,0.21802962]
[1760082646767,1.38489949,121200.0,121190.0,0.05300039]
[1760082646975,1.3049027,121200.0,121190.0,0.05300039]
[1760082649367,1.6449027,121200.0,121190.0,0.05300039]
[1760082649574,1.6606927,121200.0,121190.0,0.02847039]
[1760082650250,1.6606927,121200.0,121190.0,0.02950212]
[1760082650676,1.74068949,121200.0,121190.0,0.02950212]
[1760082650895,1.6606927,121200.0,121190.0,0.02950212]
[1760082652422,1.4276527,121200.0,121190.0,0.00148212]
[1760082652643,2.1369158,121200.0,121190.0,0.00148212]
[1760082652872,1.47527222,121200.0,121190.0,0.00148212]
[1760082653096,1.70831222,121200.0,121190.0,0.00148212]
[1760082654589,2.16171532,121200.0,121190.0,0.00148212]
[1760082654811,1.70831222,121200.0,121190.0,0.00148212]
[1760082655065,1.92867532,121200.0,121190.0,0.00148212]
[1760082655731,2.16171532,121200.0,121190.0,0.00148212]
[1760082656176,1.92867532,121200.0,121190.0,0.00148212]
[1760082656349,2.16175532,121200.0,121190.0,0.00148212]
[1760082656828,2.59123532,121200.0,121190.0,0.00148212]
[1760082657230,1.23102602,121200.0,121190.0,0.00148212]
[1760082657452,2.35815532,121200.0,121190.0,0.00148212]
[1760082657664,2.13783222,121200.0,121190.0,0.00148212]
[1760082657866,1.47527222,121200.0,121190.0,0.00148212]
[1760082658103,2.13783222,121200.0,121190.0,0.00148212]
[1760082658980,1.47527222,121200.0,121190.0,0.00148212]